[Event "Titled Tuesday Blitz August 09 Early 2022"]
[White "Khabinets, Ivan"]
[Black "Winterberg, Lukas"]
[WhiteFideId "14115980"]
[BlackFideId "24622702"]
[WhiteElo "2114"]
[BlackElo "2349"]
[Result "1-0"]
[Round "06"]
[TimeControl "180+1"]
[Date "2022.08.09"]
[WhiteClock "0:02:06"]
[BlackClock "0:01:41"]

1. e4 {[%clk 0:03:00]}  e6 {[%clk 0:02:57]} 2. d4 {[%clk 0:03:00]}  d5 {[%clk 0:02:58]} 3. Nd2 {[%clk 0:03:00]}  c5 {[%clk 0:02:57]} 4. exd5 {[%clk 0:03:00]}  Qxd5 {[%clk 0:02:58]} 5. Ngf3 {[%clk 0:03:01]}  cxd4 {[%clk 0:02:58]} 6. Bc4 {[%clk 0:03:02]}  Qd7 {[%clk 0:02:57]} 7. O-O {[%clk 0:03:02]}  Nc6 {[%clk 0:02:58]} 8. Nb3 {[%clk 0:03:03]}  a6 {[%clk 0:02:57]} 9. Nbxd4 {[%clk 0:03:03]}  Nxd4 {[%clk 0:02:56]} 10. Nxd4 {[%clk 0:03:04]}  Qc7 {[%clk 0:02:56]} 11. Be2 {[%clk 0:03:00]}  Nf6 {[%clk 0:02:55]} 12. c3 {[%clk 0:03:01]}  Be7 {[%clk 0:02:52]} 13. Re1 {[%clk 0:03:00]}  O-O {[%clk 0:02:53]} 14. Bf3 {[%clk 0:02:56]}  e5 {[%clk 0:02:52]} 15. Nb3 {[%clk 0:02:44]}  Bf5 {[%clk 0:02:47]} 16. Be3 {[%clk 0:02:42]}  Rad8 {[%clk 0:02:43]} 17. Qc1 {[%clk 0:02:42]}  Ng4 {[%clk 0:02:05]} 18. h3 {[%clk 0:02:24]}  Nxe3 {[%clk 0:02:04]} 19. Qxe3 {[%clk 0:02:24]}  f6 {[%clk 0:01:55]} 20. Rad1 {[%clk 0:02:22]}  Rxd1 {[%clk 0:01:53]} 21. Rxd1 {[%clk 0:02:22]}  Rd8 {[%clk 0:01:52]} 22. Rxd8+ {[%clk 0:02:22]}  Bxd8 {[%clk 0:01:51]} 23. Qc5 {[%clk 0:02:17]}  b6 {[%clk 0:01:47]} 24. Bd5+ {[%clk 0:02:07]}  Kh8 {[%clk 0:01:41]} 25. Qf8# {[%clk 0:02:06]} 1-0


[Site "https://www.chess.com"]

[Event "Titled Tuesday Blitz August 09 Early 2022"]
[White "Koutlas, Nikolaos"]
[Black "Grot, Blazej"]
[WhiteFideId "25827138"]
[BlackFideId "21835845"]
[WhiteElo "1738"]
[BlackElo "1614"]
[Result "0-1"]
[Round "06"]
[TimeControl "180+1"]
[Date "2022.08.09"]
[WhiteClock "0:00:07"]
[BlackClock "0:00:13"]

1. d4 {[%clk 0:02:33]}  Nf6 {[%clk 0:02:58]} 2. Nf3 {[%clk 0:02:33]}  e6 {[%clk 0:02:57]} 3. Bf4 {[%clk 0:02:34]}  d5 {[%clk 0:02:57]} 4. h3 {[%clk 0:02:33]}  c5 {[%clk 0:02:57]} 5. e3 {[%clk 0:02:31]}  Nc6 {[%clk 0:02:57]} 6. c3 {[%clk 0:02:31]}  Bd6 {[%clk 0:02:55]} 7. Ne5 {[%clk 0:02:26]}  O-O {[%clk 0:02:54]} 8. Nd2 {[%clk 0:02:26]}  Qe7 {[%clk 0:02:54]} 9. Ndf3 {[%clk 0:02:24]}  Nd7 {[%clk 0:02:53]} 10. Nxd7 {[%clk 0:02:16]}  Bxd7 {[%clk 0:02:50]} 11. Bxd6 {[%clk 0:02:15]}  Qxd6 {[%clk 0:02:50]} 12. Bd3 {[%clk 0:02:16]}  h6 {[%clk 0:02:48]} 13. O-O {[%clk 0:02:15]}  Rae8 {[%clk 0:02:46]} 14. e4 {[%clk 0:02:09]}  cxd4 {[%clk 0:02:43]} 15. exd5 {[%clk 0:02:08]}  Qxd5 {[%clk 0:02:41]} 16. cxd4 {[%clk 0:02:04]}  Kh8 {[%clk 0:02:31]} 17. Re1 {[%clk 0:01:47]}  Nxd4 {[%clk 0:02:30]} 18. Be4 {[%clk 0:01:47]}  Nxf3+ {[%clk 0:02:27]} 19. Qxf3 {[%clk 0:01:48]}  Qb5 {[%clk 0:02:22]} 20. Bxb7 {[%clk 0:01:48]}  Qxb2 {[%clk 0:02:18]} 21. a4 {[%clk 0:01:47]}  Rb8 {[%clk 0:02:14]} 22. Be4 {[%clk 0:01:47]}  Qb4 {[%clk 0:02:12]} 23. Red1 {[%clk 0:01:42]}  Bxa4 {[%clk 0:02:07]} 24. Rdb1 {[%clk 0:01:33]}  Qd4 {[%clk 0:02:05]} 25. Rc1 {[%clk 0:01:33]}  Bb5 {[%clk 0:02:01]} 26. Ra3 {[%clk 0:01:22]}  a6 {[%clk 0:01:53]} 27. Rc7 {[%clk 0:01:22]}  Qd6 {[%clk 0:01:45]} 28. Rac3 {[%clk 0:01:15]}  f5 {[%clk 0:01:44]} 29. Bb7 {[%clk 0:01:09]}  Rfd8 {[%clk 0:01:32]} 30. Rc1 {[%clk 0:00:51]}  Rd7 {[%clk 0:01:24]} 31. Rc8+ {[%clk 0:00:36]}  Rxc8 {[%clk 0:01:23]} 32. Rxc8+ {[%clk 0:00:36]}  Rd8 {[%clk 0:01:23]} 33. Rc1 {[%clk 0:00:31]}  Qd2 {[%clk 0:01:22]} 34. Ra1 {[%clk 0:00:30]}  Qd4 {[%clk 0:01:19]} 35. Re1 {[%clk 0:00:29]}  Qd6 {[%clk 0:01:14]} 36. g4 {[%clk 0:00:26]}  Rf8 {[%clk 0:01:08]} 37. Rd1 {[%clk 0:00:23]}  fxg4 {[%clk 0:01:03]} 38. Qxg4 {[%clk 0:00:20]}  Qb6 {[%clk 0:00:58]} 39. Qg2 {[%clk 0:00:16]}  e5 {[%clk 0:00:50]} 40. Be4 {[%clk 0:00:15]}  Qf6 {[%clk 0:00:49]} 41. Rd2 {[%clk 0:00:10]}  a5 {[%clk 0:00:47]} 42. Rb2 {[%clk 0:00:05]}  Bd7 {[%clk 0:00:45]} 43. f3 {[%clk 0:00:05]}  a4 {[%clk 0:00:43]} 44. Rb7 {[%clk 0:00:05]}  Bc8 {[%clk 0:00:40]} 45. Ra7 {[%clk 0:00:02]}  Qb6+ {[%clk 0:00:37]} 46. Qf2 {[%clk 0:00:02]}  Qxf2+ {[%clk 0:00:35]} 47. Kxf2 {[%clk 0:00:03]}  Bxh3 {[%clk 0:00:33]} 48. Rxa4 {[%clk 0:00:03]}  Bf5 {[%clk 0:00:32]} 49. Bd5 {[%clk 0:00:04]}  Bg6 {[%clk 0:00:28]} 50. Kg3 {[%clk 0:00:04]}  Bf7 {[%clk 0:00:26]} 51. Be4 {[%clk 0:00:03]}  Bb3 {[%clk 0:00:19]} 52. Ra5 {[%clk 0:00:04]}  Re8 {[%clk 0:00:18]} 53. Ra7 {[%clk 0:00:05]}  Kg8 {[%clk 0:00:16]} 54. Kh4 {[%clk 0:00:05]}  Kf8 {[%clk 0:00:16]} 55. Kh5 {[%clk 0:00:06]}  Bf7+ {[%clk 0:00:15]} 56. Bg6 {[%clk 0:00:04]}  Bxg6+ {[%clk 0:00:13]} 57. Kxg6 {[%clk 0:00:05]}  Re6+ {[%clk 0:00:13]} 58. Kh7 {[%clk 0:00:05]}  Rf6 {[%clk 0:00:12]} 59. Ra8+ {[%clk 0:00:04]}  Ke7 {[%clk 0:00:12]} 60. Ra7+ {[%clk 0:00:05]}  Ke6 {[%clk 0:00:12]} 61. Ra3 {[%clk 0:00:04]}  g5 {[%clk 0:00:11]} 62. Ra6+ {[%clk 0:00:04]}  Kf5 {[%clk 0:00:11]} 63. Rxf6+ {[%clk 0:00:04]}  Kxf6 {[%clk 0:00:11]} 64. Kxh6 {[%clk 0:00:05]}  Kf5 {[%clk 0:00:12]} 65. Kh5 {[%clk 0:00:05]}  Kf4 {[%clk 0:00:12]} 66. Kg6 {[%clk 0:00:05]}  Kxf3 {[%clk 0:00:12]} 67. Kf5 {[%clk 0:00:06]}  e4 {[%clk 0:00:13]} 68. Ke5 {[%clk 0:00:07]}  e3 {[%clk 0:00:13]} 0-1


[Site "https://www.chess.com"]

[Event "Titled Tuesday Blitz August 09 Early 2022"]
[White "Large, Peter G"]
[Black "Pein, Jonathan"]
[WhiteFideId "400866"]
[BlackFideId "417092"]
[WhiteElo "2064"]
[BlackElo "2140"]
[Result "1-0"]
[Round "06"]
[TimeControl "180+1"]
[Date "2022.08.09"]
[WhiteClock "0:00:37"]
[BlackClock "0:00:20"]

1. Nf3 {[%clk 0:02:58]}  g6 {[%clk 0:02:56]} 2. b3 {[%clk 0:02:55]}  Bg7 {[%clk 0:02:56]} 3. d4 {[%clk 0:02:55]}  c5 {[%clk 0:02:56]} 4. Bb2 {[%clk 0:02:54]}  Nc6 {[%clk 0:02:55]} 5. e3 {[%clk 0:02:53]}  d5 {[%clk 0:02:55]} 6. Be2 {[%clk 0:02:50]}  Nf6 {[%clk 0:02:53]} 7. O-O {[%clk 0:02:48]}  b6 {[%clk 0:02:53]} 8. dxc5 {[%clk 0:02:47]}  bxc5 {[%clk 0:02:53]} 9. c4 {[%clk 0:02:42]}  O-O {[%clk 0:02:53]} 10. cxd5 {[%clk 0:02:41]}  Qxd5 {[%clk 0:02:52]} 11. Qxd5 {[%clk 0:02:38]}  Nxd5 {[%clk 0:02:53]} 12. Bxg7 {[%clk 0:02:38]}  Kxg7 {[%clk 0:02:54]} 13. Rc1 {[%clk 0:02:37]}  Bb7 {[%clk 0:02:33]} 14. Nc3 {[%clk 0:02:34]}  Nxc3 {[%clk 0:02:21]} 15. Rxc3 {[%clk 0:02:34]}  Rfd8 {[%clk 0:02:21]} 16. Rxc5 {[%clk 0:02:33]}  Rd6 {[%clk 0:02:20]} 17. Rac1 {[%clk 0:02:31]}  Rad8 {[%clk 0:02:20]} 18. Kf1 {[%clk 0:02:23]}  e6 {[%clk 0:02:12]} 19. a3 {[%clk 0:02:21]}  h6 {[%clk 0:02:08]} 20. b4 {[%clk 0:02:21]}  a6 {[%clk 0:02:04]} 21. h4 {[%clk 0:02:20]}  Kf8 {[%clk 0:01:52]} 22. Ke1 {[%clk 0:02:19]}  Ke7 {[%clk 0:01:38]} 23. Bxa6 {[%clk 0:02:13]}  Nxb4 {[%clk 0:01:22]} 24. axb4 {[%clk 0:01:46]}  Bxa6 {[%clk 0:01:17]} 25. b5 {[%clk 0:01:46]}  Bb7 {[%clk 0:01:17]} 26. Rc7+ {[%clk 0:01:44]}  R8d7 {[%clk 0:01:16]} 27. Ne5 {[%clk 0:01:42]}  Rd1+ {[%clk 0:01:08]} 28. Rxd1 {[%clk 0:01:31]}  Rxc7 {[%clk 0:01:08]} 29. f3 {[%clk 0:01:25]}  g5 {[%clk 0:01:08]} 30. hxg5 {[%clk 0:01:23]}  hxg5 {[%clk 0:01:09]} 31. b6 {[%clk 0:01:09]}  Rc3 {[%clk 0:00:47]} 32. Rd7+ {[%clk 0:01:02]}  Ke8 {[%clk 0:00:45]} 33. Kd2 {[%clk 0:00:46]}  Rc5 {[%clk 0:00:34]} 34. Rxb7 {[%clk 0:00:44]}  Rxe5 {[%clk 0:00:33]} 35. Rc7 {[%clk 0:00:40]}  Kd8 {[%clk 0:00:20]} 36. Rxf7 {[%clk 0:00:40]}  Rb5 {[%clk 0:00:20]} 37. b7 {[%clk 0:00:38]}  Ke8 {[%clk 0:00:21]} 38. Rh7 {[%clk 0:00:38]}  Rb2+ {[%clk 0:00:20]} 39. Kc3 {[%clk 0:00:37]} 1-0


[Site "https://www.chess.com"]

[Event "Titled Tuesday Blitz August 09 Early 2022"]
[White "Livaic, Leon"]
[Black "Wagner, Dennis"]
[WhiteFideId "14531534"]
[BlackFideId "24650684"]
[WhiteElo "2871"]
[BlackElo "2712"]
[Result "1-0"]
[Round "06"]
[TimeControl "180+1"]
[Date "2022.08.09"]
[WhiteClock "0:00:23"]
[BlackClock "0:00:14"]

1. d4 {[%clk 0:03:00]}  Nf6 {[%clk 0:02:59]} 2. c4 {[%clk 0:03:00]}  e6 {[%clk 0:03:00]} 3. Nf3 {[%clk 0:03:00]}  d5 {[%clk 0:03:00]} 4. Nc3 {[%clk 0:03:01]}  Bb4 {[%clk 0:02:59]} 5. Qa4+ {[%clk 0:02:53]}  Nc6 {[%clk 0:02:59]} 6. Bg5 {[%clk 0:02:53]}  dxc4 {[%clk 0:02:53]} 7. a3 {[%clk 0:02:51]}  Bxc3+ {[%clk 0:02:50]} 8. bxc3 {[%clk 0:02:52]}  Qd5 {[%clk 0:02:48]} 9. Bxf6 {[%clk 0:02:52]}  gxf6 {[%clk 0:02:48]} 10. Nd2 {[%clk 0:02:52]}  b5 {[%clk 0:02:47]} 11. Qc2 {[%clk 0:02:53]}  Bb7 {[%clk 0:02:40]} 12. e4 {[%clk 0:02:43]}  Qg5 {[%clk 0:02:40]} 13. a4 {[%clk 0:02:24]}  a6 {[%clk 0:02:35]} 14. Rb1 {[%clk 0:02:19]}  Na7 {[%clk 0:02:11]} 15. Nxc4 {[%clk 0:02:15]}  O-O {[%clk 0:01:59]} 16. Ne3 {[%clk 0:02:02]}  c5 {[%clk 0:01:57]} 17. h4 {[%clk 0:01:48]}  Qf4 {[%clk 0:01:56]} 18. d5 {[%clk 0:01:45]}  exd5 {[%clk 0:01:53]} 19. exd5 {[%clk 0:01:42]}  Rfe8 {[%clk 0:01:52]} 20. Be2 {[%clk 0:01:41]}  Rxe3 {[%clk 0:01:47]} 21. fxe3 {[%clk 0:01:41]}  Qg3+ {[%clk 0:01:46]} 22. Kf1 {[%clk 0:01:38]}  Bxd5 {[%clk 0:01:46]} 23. e4 {[%clk 0:01:37]}  Qf4+ {[%clk 0:01:32]} 24. Bf3 {[%clk 0:01:32]}  Bc4+ {[%clk 0:01:33]} 25. Kf2 {[%clk 0:01:31]}  Nc6 {[%clk 0:01:26]} 26. Qc1 {[%clk 0:01:28]}  Qc7 {[%clk 0:01:14]} 27. Qe3 {[%clk 0:01:21]}  Ne5 {[%clk 0:01:13]} 28. Rhd1 {[%clk 0:01:18]}  bxa4 {[%clk 0:01:10]} 29. Qh6 {[%clk 0:01:04]}  Qc6 {[%clk 0:00:44]} 30. Rd2 {[%clk 0:00:52]}  a3 {[%clk 0:00:43]} 31. Rbd1 {[%clk 0:00:51]}  Re8 {[%clk 0:00:37]} 32. Rd6 {[%clk 0:00:47]}  Qa4 {[%clk 0:00:28]} 33. Qxf6 {[%clk 0:00:39]}  a2 {[%clk 0:00:27]} 34. Rd8 {[%clk 0:00:33]}  Nd3+ {[%clk 0:00:27]} 35. R1xd3 {[%clk 0:00:26]}  Bxd3 {[%clk 0:00:17]} 36. Qg5+ {[%clk 0:00:25]}  Kh8 {[%clk 0:00:15]} 37. Qe5+ {[%clk 0:00:24]}  Kg8 {[%clk 0:00:14]} 38. Rxe8+ {[%clk 0:00:24]}  Qxe8 {[%clk 0:00:14]} 39. Qxe8+ {[%clk 0:00:24]}  Kg7 {[%clk 0:00:14]} 40. Qa4 {[%clk 0:00:23]} 1-0


[Site "https://www.chess.com"]

[Event "Titled Tuesday Blitz August 09 Early 2022"]
[White "Locci, Damiano"]
[Black "Gonzalez Vega, Alejandro"]
[WhiteFideId "819751"]
[BlackFideId "3510042"]
[WhiteElo "2363"]
[BlackElo "2211"]
[Result "1-0"]
[Round "06"]
[TimeControl "180+1"]
[Date "2022.08.09"]
[WhiteClock "0:00:08"]
[BlackClock "0:00:02"]

1. c4 {[%clk 0:02:56]}  e5 {[%clk 0:02:59]} 2. Nc3 {[%clk 0:02:56]}  Nc6 {[%clk 0:02:59]} 3. Nf3 {[%clk 0:02:56]}  Nf6 {[%clk 0:02:55]} 4. e3 {[%clk 0:02:56]}  d6 {[%clk 0:02:51]} 5. d4 {[%clk 0:02:50]}  Be7 {[%clk 0:02:46]} 6. Be2 {[%clk 0:02:50]}  O-O {[%clk 0:02:46]} 7. O-O {[%clk 0:02:51]}  Re8 {[%clk 0:02:46]} 8. b3 {[%clk 0:02:50]}  Bf8 {[%clk 0:02:42]} 9. Ba3 {[%clk 0:02:41]}  e4 {[%clk 0:02:41]} 10. Nd2 {[%clk 0:02:39]}  Bf5 {[%clk 0:02:41]} 11. Re1 {[%clk 0:02:34]}  h6 {[%clk 0:02:39]} 12. Nf1 {[%clk 0:02:34]}  Bg6 {[%clk 0:02:35]} 13. Ng3 {[%clk 0:02:34]}  a6 {[%clk 0:02:29]} 14. Rc1 {[%clk 0:02:34]}  Qd7 {[%clk 0:02:29]} 15. Bf1 {[%clk 0:02:17]}  h5 {[%clk 0:02:06]} 16. Nce2 {[%clk 0:02:11]}  h4 {[%clk 0:02:05]} 17. Nh1 {[%clk 0:02:11]}  Bh5 {[%clk 0:01:55]} 18. Qd2 {[%clk 0:02:11]}  Qf5 {[%clk 0:01:52]} 19. Nf4 {[%clk 0:02:10]}  Bg6 {[%clk 0:01:46]} 20. Bb2 {[%clk 0:02:02]}  Bh7 {[%clk 0:01:45]} 21. b4 {[%clk 0:01:53]}  g5 {[%clk 0:01:44]} 22. Nh3 {[%clk 0:01:45]}  Bg7 {[%clk 0:01:40]} 23. a3 {[%clk 0:01:44]}  Ne7 {[%clk 0:01:39]} 24. d5 {[%clk 0:01:40]}  Ng6 {[%clk 0:01:38]} 25. Red1 {[%clk 0:01:33]}  Ne5 {[%clk 0:01:34]} 26. Be2 {[%clk 0:01:27]}  Bg6 {[%clk 0:01:26]} 27. Qe1 {[%clk 0:01:20]}  Bh5 {[%clk 0:01:26]} 28. c5 {[%clk 0:01:15]}  Bxe2 {[%clk 0:01:25]} 29. Qxe2 {[%clk 0:01:16]}  Nfg4 {[%clk 0:01:05]} 30. cxd6 {[%clk 0:01:11]}  cxd6 {[%clk 0:01:05]} 31. Rc7 {[%clk 0:01:08]}  Nd3 {[%clk 0:00:52]} 32. Bxg7 {[%clk 0:01:07]}  Kxg7 {[%clk 0:00:52]} 33. f3 {[%clk 0:01:08]}  Nxe3 {[%clk 0:00:24]} 34. Qxe3 {[%clk 0:01:01]}  exf3 {[%clk 0:00:24]} 35. Qxg5+ {[%clk 0:00:40]}  Qxg5 {[%clk 0:00:24]} 36. Nxg5 {[%clk 0:00:41]}  fxg2 {[%clk 0:00:14]} 37. Kxg2 {[%clk 0:00:33]}  Nf4+ {[%clk 0:00:14]} 38. Kf3 {[%clk 0:00:33]}  Ng6 {[%clk 0:00:10]} 39. Rxf7+ {[%clk 0:00:29]}  Kg8 {[%clk 0:00:10]} 40. Rxb7 {[%clk 0:00:24]}  Ne5+ {[%clk 0:00:11]} 41. Kg2 {[%clk 0:00:23]}  Rac8 {[%clk 0:00:10]} 42. Nf2 {[%clk 0:00:18]}  Rc2 {[%clk 0:00:09]} 43. Rg1 {[%clk 0:00:15]}  Rf8 {[%clk 0:00:07]} 44. Nh3 {[%clk 0:00:14]}  Kh8 {[%clk 0:00:02]} 45. Rf1 {[%clk 0:00:09]}  Rg8+ {[%clk 0:00:02]} 46. Kh1 {[%clk 0:00:10]}  Nf3 {[%clk 0:00:02]} 47. Rf7 {[%clk 0:00:08]} 1-0


[Site "https://www.chess.com"]

[Event "Titled Tuesday Blitz August 09 Early 2022"]
[White "Maiorov, Nikita"]
[Black "Rustemov, Alexander"]
[WhiteFideId "13501720"]
[BlackFideId "4119002"]
[WhiteElo "2409"]
[BlackElo "2781"]
[Result "1-0"]
[Round "06"]
[TimeControl "180+1"]
[Date "2022.08.09"]
[WhiteClock "0:00:04"]
[BlackClock "0:00:16"]

1. d4 {[%clk 0:02:58]}  d5 {[%clk 0:03:00]} 2. c4 {[%clk 0:02:58]}  c6 {[%clk 0:03:00]} 3. Nc3 {[%clk 0:02:56]}  dxc4 {[%clk 0:03:00]} 4. e3 {[%clk 0:02:56]}  Be6 {[%clk 0:02:59]} 5. Nf3 {[%clk 0:02:53]}  Nf6 {[%clk 0:02:59]} 6. Be2 {[%clk 0:02:53]}  g6 {[%clk 0:02:54]} 7. O-O {[%clk 0:02:48]}  Bg7 {[%clk 0:02:54]} 8. Ng5 {[%clk 0:02:47]}  Qd7 {[%clk 0:02:53]} 9. Nxe6 {[%clk 0:02:45]}  Qxe6 {[%clk 0:02:53]} 10. a4 {[%clk 0:02:45]}  O-O {[%clk 0:02:48]} 11. Qc2 {[%clk 0:02:20]}  Nbd7 {[%clk 0:02:45]} 12. e4 {[%clk 0:02:18]}  b5 {[%clk 0:02:32]} 13. axb5 {[%clk 0:02:12]}  cxb5 {[%clk 0:02:31]} 14. e5 {[%clk 0:02:12]}  Nd5 {[%clk 0:02:13]} 15. Nxb5 {[%clk 0:01:36]}  N7b6 {[%clk 0:02:12]} 16. Nc3 {[%clk 0:01:33]}  Rfc8 {[%clk 0:02:06]} 17. Qe4 {[%clk 0:01:30]}  Qc6 {[%clk 0:02:01]} 18. Bf3 {[%clk 0:01:29]}  e6 {[%clk 0:02:01]} 19. h4 {[%clk 0:01:25]}  a5 {[%clk 0:01:43]} 20. Qe2 {[%clk 0:01:23]}  a4 {[%clk 0:01:42]} 21. Ne4 {[%clk 0:01:23]}  a3 {[%clk 0:01:33]} 22. bxa3 {[%clk 0:01:22]}  c3 {[%clk 0:01:34]} 23. Nd6 {[%clk 0:01:17]}  Rc7 {[%clk 0:01:32]} 24. h5 {[%clk 0:01:16]}  Nc4 {[%clk 0:01:29]} 25. hxg6 {[%clk 0:01:14]}  hxg6 {[%clk 0:01:28]} 26. Ne4 {[%clk 0:01:07]}  Qb6 {[%clk 0:01:22]} 27. Nf6+ {[%clk 0:00:50]}  Bxf6 {[%clk 0:01:19]} 28. exf6 {[%clk 0:00:49]}  Qxd4 {[%clk 0:01:18]} 29. Bg5 {[%clk 0:00:23]}  Qe5 {[%clk 0:01:17]} 30. Qxe5 {[%clk 0:00:19]}  Nxe5 {[%clk 0:01:18]} 31. Bxd5 {[%clk 0:00:19]}  exd5 {[%clk 0:01:17]} 32. Bf4 {[%clk 0:00:19]}  Re8 {[%clk 0:01:06]} 33. Rfe1 {[%clk 0:00:19]}  c2 {[%clk 0:01:06]} 34. Bxe5 {[%clk 0:00:16]}  Rxe5 {[%clk 0:00:56]} 35. Rxe5 {[%clk 0:00:16]}  d4 {[%clk 0:00:57]} 36. Rd5 {[%clk 0:00:13]}  c1=Q+ {[%clk 0:00:54]} 37. Rxc1 {[%clk 0:00:12]}  Rxc1+ {[%clk 0:00:55]} 38. Kh2 {[%clk 0:00:13]}  Ra1 {[%clk 0:00:43]} 39. Rd8+ {[%clk 0:00:11]}  Kh7 {[%clk 0:00:42]} 40. Rf8 {[%clk 0:00:11]}  Rxa3 {[%clk 0:00:36]} 41. Rxf7+ {[%clk 0:00:11]}  Kh6 {[%clk 0:00:37]} 42. Rd7 {[%clk 0:00:10]}  Rd3 {[%clk 0:00:33]} 43. f3 {[%clk 0:00:09]}  g5 {[%clk 0:00:32]} 44. Kh3 {[%clk 0:00:07]}  Kg6 {[%clk 0:00:24]} 45. f7 {[%clk 0:00:07]}  Kg7 {[%clk 0:00:24]} 46. Kg4 {[%clk 0:00:07]}  Rd2 {[%clk 0:00:22]} 47. g3 {[%clk 0:00:07]}  Rg2 {[%clk 0:00:17]} 48. Rxd4 {[%clk 0:00:06]}  Kxf7 {[%clk 0:00:16]} 49. Rd5 {[%clk 0:00:07]}  Kf6 {[%clk 0:00:16]} 50. Rf5+ {[%clk 0:00:07]}  Ke6 {[%clk 0:00:16]} 51. Rxg5 {[%clk 0:00:07]}  Kf6 {[%clk 0:00:17]} 52. Rf5+ {[%clk 0:00:07]}  Ke6 {[%clk 0:00:17]} 53. Rg5 {[%clk 0:00:07]}  Ra2 {[%clk 0:00:17]} 54. f4 {[%clk 0:00:08]}  Kf6 {[%clk 0:00:17]} 55. Re5 {[%clk 0:00:09]}  Ra1 {[%clk 0:00:17]} 56. Rf5+ {[%clk 0:00:09]}  Kg6 {[%clk 0:00:17]} 57. Rg5+ {[%clk 0:00:09]}  Kf6 {[%clk 0:00:18]} 58. Rb5 {[%clk 0:00:09]}  Kg6 {[%clk 0:00:18]} 59. Rb6+ {[%clk 0:00:09]}  Kf7 {[%clk 0:00:18]} 60. Kg5 {[%clk 0:00:10]}  Ra5+ {[%clk 0:00:16]} 61. f5 {[%clk 0:00:10]}  Ra7 {[%clk 0:00:17]} 62. g4 {[%clk 0:00:09]}  Kg7 {[%clk 0:00:17]} 63. Rc6 {[%clk 0:00:09]}  Rb7 {[%clk 0:00:18]} 64. Ra6 {[%clk 0:00:09]}  Rc7 {[%clk 0:00:18]} 65. Kh5 {[%clk 0:00:06]}  Rc1 {[%clk 0:00:17]} 66. Ra7+ {[%clk 0:00:04]}  Kf6 {[%clk 0:00:17]} 67. Ra6+ {[%clk 0:00:05]}  Kg7 {[%clk 0:00:17]} 68. Rg6+ {[%clk 0:00:05]}  Kh7 {[%clk 0:00:17]} 69. Kg5 {[%clk 0:00:05]}  Rc7 {[%clk 0:00:15]} 70. Re6 {[%clk 0:00:05]}  Kg7 {[%clk 0:00:16]} 71. f6+ {[%clk 0:00:04]}  Kf8 {[%clk 0:00:15]} 72. Kg6 {[%clk 0:00:04]}  Rc8 {[%clk 0:00:14]} 73. Ra6 {[%clk 0:00:03]}  Rb8 {[%clk 0:00:14]} 74. g5 {[%clk 0:00:04]}  Kg8 {[%clk 0:00:14]} 75. Ra7 {[%clk 0:00:03]}  Kh8 {[%clk 0:00:14]} 76. Rh7+ {[%clk 0:00:03]}  Kg8 {[%clk 0:00:15]} 77. f7+ {[%clk 0:00:03]}  Kf8 {[%clk 0:00:16]} 78. Rh8+ {[%clk 0:00:04]} 1-0


[Site "https://www.chess.com"]

[Event "Titled Tuesday Blitz August 09 Early 2022"]
[White "Makarian, Rudik"]
[Black "Bazeev, German"]
[WhiteFideId "44105681"]
[BlackFideId "24119350"]
[WhiteElo "2858"]
[BlackElo "2702"]
[Result "1-0"]
[Round "06"]
[TimeControl "180+1"]
[Date "2022.08.09"]
[WhiteClock "0:00:13"]
[BlackClock "0:00:13"]

1. c4 {[%clk 0:03:00]}  e5 {[%clk 0:02:59]} 2. Nc3 {[%clk 0:03:01]}  Nf6 {[%clk 0:03:00]} 3. Nf3 {[%clk 0:03:01]}  Nc6 {[%clk 0:03:00]} 4. e3 {[%clk 0:03:01]}  Bb4 {[%clk 0:02:59]} 5. Qc2 {[%clk 0:03:01]}  Bxc3 {[%clk 0:03:00]} 6. Qxc3 {[%clk 0:03:02]}  d6 {[%clk 0:02:57]} 7. b4 {[%clk 0:03:02]}  O-O {[%clk 0:02:57]} 8. Bb2 {[%clk 0:03:02]}  Re8 {[%clk 0:02:56]} 9. Be2 {[%clk 0:03:02]}  Bf5 {[%clk 0:02:51]} 10. d3 {[%clk 0:02:55]}  h6 {[%clk 0:02:50]} 11. O-O {[%clk 0:02:54]}  Ne7 {[%clk 0:02:40]} 12. a4 {[%clk 0:02:51]}  a5 {[%clk 0:02:39]} 13. b5 {[%clk 0:02:49]}  b6 {[%clk 0:02:39]} 14. Nd2 {[%clk 0:02:44]}  Bc8 {[%clk 0:02:34]} 15. Bf3 {[%clk 0:02:39]}  Rb8 {[%clk 0:02:33]} 16. h3 {[%clk 0:02:36]}  Bb7 {[%clk 0:02:33]} 17. Bxb7 {[%clk 0:02:35]}  Rxb7 {[%clk 0:02:34]} 18. f4 {[%clk 0:02:19]}  Ng6 {[%clk 0:02:34]} 19. f5 {[%clk 0:02:16]}  Nf8 {[%clk 0:02:34]} 20. e4 {[%clk 0:02:16]}  N6d7 {[%clk 0:02:20]} 21. Nf3 {[%clk 0:02:14]}  f6 {[%clk 0:02:19]} 22. g4 {[%clk 0:02:12]}  Kf7 {[%clk 0:02:06]} 23. Kg2 {[%clk 0:02:10]}  Nc5 {[%clk 0:02:05]} 24. Bc1 {[%clk 0:01:58]}  Ke7 {[%clk 0:02:05]} 25. Be3 {[%clk 0:01:58]}  Rb8 {[%clk 0:02:05]} 26. d4 {[%clk 0:01:49]}  exd4 {[%clk 0:02:00]} 27. Nxd4 {[%clk 0:01:50]}  Kf7 {[%clk 0:01:41]} 28. Nc6 {[%clk 0:01:49]}  Qd7 {[%clk 0:01:42]} 29. Bxc5 {[%clk 0:01:48]}  bxc5 {[%clk 0:01:38]} 30. Nxb8 {[%clk 0:01:32]}  Rxb8 {[%clk 0:01:39]} 31. Qxa5 {[%clk 0:01:33]}  Qe7 {[%clk 0:01:39]} 32. Rfe1 {[%clk 0:01:29]}  h5 {[%clk 0:01:26]} 33. Qc3 {[%clk 0:01:24]}  h4 {[%clk 0:01:26]} 34. a5 {[%clk 0:01:23]}  Nd7 {[%clk 0:01:27]} 35. a6 {[%clk 0:01:18]}  Nb6 {[%clk 0:01:25]} 36. a7 {[%clk 0:01:15]}  Ra8 {[%clk 0:01:25]} 37. e5 {[%clk 0:01:01]}  fxe5 {[%clk 0:01:24]} 38. f6 {[%clk 0:00:57]}  Qe6 {[%clk 0:01:11]} 39. fxg7 {[%clk 0:00:54]}  Kxg7 {[%clk 0:01:12]} 40. Re4 {[%clk 0:00:30]}  Qf7 {[%clk 0:00:59]} 41. Qe3 {[%clk 0:00:26]}  Qg6 {[%clk 0:00:41]} 42. g5 {[%clk 0:00:18]}  Rf8 {[%clk 0:00:24]} 43. Rxh4 {[%clk 0:00:16]}  Qc2+ {[%clk 0:00:22]} 44. Kg1 {[%clk 0:00:16]}  Nxc4 {[%clk 0:00:19]} 45. Rxc4 {[%clk 0:00:14]}  Qxc4 {[%clk 0:00:19]} 46. a8=Q {[%clk 0:00:13]}  Rxa8 {[%clk 0:00:18]} 47. Rxa8 {[%clk 0:00:14]}  Qd5 {[%clk 0:00:14]} 48. Ra1 {[%clk 0:00:14]}  c4 {[%clk 0:00:14]} 49. Rf1 {[%clk 0:00:13]}  Qxb5 {[%clk 0:00:13]} 50. Qf3 {[%clk 0:00:13]} 1-0


[Site "https://www.chess.com"]